fUSD/lending_fUSD_20240203
["ID","MTS","AMOUNT","RATE_DAILY","PERIOD"]
[313218780,1706967046714,-500.0,0.00023343,2]
[313218781,1706967046724,-1009.0,0.00023343,2]
[313218782,1706967046733,-500.0,0.00023343,2]
[313218783,1706967046743,-699.25,0.00023343,2]
[313218784,1706967046752,-500.0,0.00023343,2]
[313218785,1706967046765,-500.0,0.00023343,2]
[313218786,1706967046774,-500.0,0.00023343,2]
[313218787,1706967046784,-500.0,0.00023343,2]
[313218788,1706967046793,-500.0,0.00023343,2]
[313218789,1706967046802,-562.87,0.00023343,2]
[313218790,1706967046812,-500.0,0.00023343,2]
[313218791,1706967046822,-8524.74,0.00023343,2]
[313218792,1706967046831,-500.0,0.00023343,2]
[313218793,1706967046841,-500.0,0.00023343,2]
[313218794,1706967046851,-520.88,0.00023343,2]
[313218795,1706967046861,-500.0,0.00023343,2]
[313218796,1706967046870,-500.0,0.00023343,2]
[313218797,1706967046879,-334.75980549,0.00023343,2]
[313218798,1706967046888,-541.55,0.00023343,2]
[313218799,1706967046898,-500.0,0.00023343,2]
[313218800,1706967046909,-607.69,0.00023343,2]
[313218801,1706967046919,-1233.62,0.00023343,2]
[313218802,1706967046929,-500.0,0.00023343,2]
[313218803,1706967046939,-500.0,0.00023343,2]
[313218804,1706967046949,-689.93,0.00023343,2]
[313218805,1706967046958,-500.0,0.00023343,2]
[313218806,1706967046967,-500.0,0.00023343,2]
[313218807,1706967046978,-1066.18,0.00023343,2]
[313218808,1706967046989,-500.0,0.00023343,2]
[313218809,1706967046999,-500.0,0.00023343,2]
[313218810,1706967047008,-500.0,0.00023343,2]
[313218811,1706967047017,-500.0,0.00023343,2]
[313218812,1706967047026,-500.0,0.00023343,2]
[313218813,1706967047036,-500.0,0.00023343,2]
[313218814,1706967047045,-500.0,0.00023343,2]
[313218815,1706967047054,-500.0,0.00023343,2]
[313218816,1706967047063,-1533.71,0.00023343,2]
[313218817,1706967047073,-500.0,0.00023343,2]
[313218818,1706967047082,-1939.99,0.00023343,2]
[313218819,1706967047090,-500.0,0.00023343,2]
[313218820,1706967047100,-500.0,0.00023343,2]
[313218821,1706967047109,-704.24,0.00023343,2]
[313218822,1706967047199,-500.0,0.00023343,2]
[313218823,1706967047219,-500.0,0.00023343,2]
[313218824,1706967047229,-500.0,0.00023343,2]
[313218825,1706967047239,-500.0,0.00023343,2]
[313218826,1706967047249,-500.0,0.00023343,2]
[313218827,1706967047259,-500.0,0.00023343,2]
[313218828,1706967047268,-804.23,0.00023343,2]
[313218829,1706967047278,-500.0,0.00023343,2]
[313218830,1706967047288,-1502.46,0.00023343,2]
[313218831,1706967047298,-1755.72,0.00023343,2]
[313218832,1706967047309,-500.0,0.00023343,2]
[313218833,1706967047320,-647.45,0.00023343,2]
[313218834,1706967047329,-500.0,0.00023343,2]
[313218835,1706967047338,-500.0,0.00023343,2]
[313218836,1706967047348,-500.0,0.00023343,2]
[313218837,1706967047358,-500.0,0.00023343,2]
[313218838,1706967047367,-1885.06,0.00023343,2]
[313218839,1706967047377,-500.0,0.00023343,2]
[313218840,1706967047386,-500.0,0.00023343,2]
[313218841,1706967047405,-722.12,0.00023343,2]
[313218842,1706967047418,-500.0,0.00023343,2]
[313218843,1706967047428,-500.0,0.00023343,2]
[313218844,1706967047438,-500.0,0.00023343,2]
[313218845,1706967047449,-500.0,0.00023343,2]
[313218846,1706967047459,-500.0,0.00023343,2]
[313218847,1706967047471,-500.0,0.00023343,2]
[313218848,1706967047481,-1473.7426942,0.00023411,2]
[313218849,1706967047491,-8135.16,0.00023458,2]
[313218850,1706967047501,-400.0,0.0002347,2]
[313218851,1706967047511,-400.0,0.0002347,2]
[313218852,1706967047521,-454.0,0.000235,11]
[313218853,1706967047530,-878.06,0.00023504,2]
[313218854,1706967047540,-500.0,0.00023504,2]
[313218855,1706967047550,-697.41,0.00023504,2]
[313218856,1706967047561,-500.0,0.00023505,2]
[313218857,1706967047571,-844.92,0.00023505,2]
[313218858,1706967047580,-905.64,0.00023505,2]
[313218859,1706967047590,-500.0,0.00023505,2]
[313218860,1706967047600,-152.57148147,0.00023506,2]
[313218861,1706967047610,-500.0,0.00023617,2]
[313218862,1706967047620,-500.0,0.00023617,2]
[313218863,1706967047629,-535.24650799,0.00023617,2]
[313218864,1706967047639,-500.0,0.00023617,2]
[313218865,1706967047649,-500.0,0.00023617,2]
[313218866,1706967047659,-500.0,0.00023617,2]
[313218867,1706967047669,-500.0,0.00023617,2]
[313218868,1706967047678,-718.23,0.00023617,2]
[313218869,1706967047688,-500.0,0.00023617,2]
[313218870,1706967047697,-500.0,0.00023617,2]
[313218871,1706967047707,-583.57,0.00023617,2]
[313218872,1706967047717,-500.0,0.00023617,2]
[313218873,1706967047726,-600.25,0.00023617,2]
[313218874,1706967047735,-500.0,0.00023617,2]
[313218875,1706967047745,-500.0,0.00023617,2]
[313218876,1706967047754,-500.0,0.00023617,2]
[313218877,1706967047764,-1094.28,0.00023617,2]
[313218878,1706967047773,-500.0,0.00023617,2]
[313218879,1706967047783,-500.0,0.00023617,2]
[313218880,1706967047792,-500.0,0.00023617,2]
[313218881,1706967047801,-1455.45,0.00023617,2]
[313218882,1706967047811,-500.0,0.00023617,2]
[313218883,1706967047820,-597.23,0.00023617,2]
[313218884,1706967047830,-500.0,0.00023617,2]
[313218885,1706967047839,-500.0,0.00023617,2]
[313218886,1706967047848,-500.0,0.00023617,2]
[313218887,1706967047858,-8496.32,0.00023617,2]
[313218888,1706967047868,-500.0,0.00023617,2]
[313218889,1706967047877,-500.0,0.00023617,2]
[313218890,1706967047887,-500.0,0.00023617,2]
[313218891,1706967047897,-500.0,0.00023617,2]
[313218892,1706967047906,-500.0,0.00023617,2]
[313218893,1706967047915,-500.0,0.00023617,2]
[313218894,1706967047924,-500.0,0.00023617,2]
[313218895,1706967047934,-1626.48,0.00023617,2]
[313218896,1706967047942,-500.0,0.00023617,2]
[313218897,1706967047951,-500.0,0.00023617,2]
[313218898,1706967047960,-500.0,0.00023617,2]
[313218899,1706967047970,-500.0,0.00023617,2]
[313218900,1706967047979,-784.58,0.00023617,2]
[313218901,1706967047988,-564.24,0.00023617,2]
[313218902,1706967047997,-500.0,0.00023617,2]
[313218903,1706967048007,-500.0,0.00023617,2]
[313218904,1706967048017,-500.0,0.00023617,2]
[313218905,1706967048026,-500.0,0.00023617,2]
[313218906,1706967048035,-764.69,0.00023617,2]
[313218907,1706967048045,-500.0,0.00023617,2]
[313218908,1706967048054,-1009.0,0.00023617,2]
[313218909,1706967048063,-500.0,0.00023617,2]
[313218910,1706967048073,-699.25,0.00023617,2]
[313218911,1706967048082,-500.0,0.00023617,2]
[313218912,1706967048091,-500.0,0.00023617,2]
[313218913,1706967048100,-500.0,0.00023617,2]
[313218914,1706967048109,-500.0,0.00023617,2]
[313218915,1706967048118,-500.0,0.00023617,2]
[313218916,1706967048127,-562.87,0.00023617,2]
[313218917,1706967048137,-500.0,0.00023617,2]
[313218918,1706967048145,-8524.74,0.00023617,2]
[313218919,1706967048154,-500.0,0.00023617,2]
[313218920,1706967048163,-500.0,0.00023617,2]
[313218921,1706967048172,-520.88,0.00023617,2]
[313218922,1706967048181,-500.0,0.00023617,2]
[313218923,1706967048190,-500.0,0.00023617,2]
[313218924,1706967048199,-541.55,0.00023617,2]
[313218925,1706967048209,-500.0,0.00023617,2]
[313218926,1706967048218,-607.69,0.00023617,2]
[313218927,1706967048231,-1233.62,0.00023617,2]
[313218928,1706967048240,-500.0,0.00023617,2]
[313218929,1706967048250,-500.0,0.00023617,2]
[313218930,1706967048259,-689.93,0.00023617,2]
[313218931,1706967048268,-500.0,0.00023617,2]
[313218932,1706967048277,-500.0,0.00023617,2]
[313218933,1706967048287,-1066.18,0.00023617,2]
[313218934,1706967048296,-500.0,0.00023617,2]
[313218935,1706967048305,-500.0,0.00023617,2]
[313218936,1706967048314,-500.0,0.00023617,2]
[313218937,1706967048323,-500.0,0.00023617,2]
[313218938,1706967048333,-379.76272907,0.00023617,2]
[313218939,1706967048342,-500.0,0.00023617,2]
[313218940,1706967048351,-500.0,0.00023617,2]
[313218941,1706967048360,-500.0,0.00023617,2]
[313218942,1706967048369,-1533.71,0.00023617,2]
[313218943,1706967048378,-500.0,0.00023617,2]
[313218944,1706967048387,-1939.99,0.00023617,2]
[313218945,1706967048396,-500.0,0.00023617,2]
[313218946,1706967048406,-500.0,0.00023617,2]
[313218947,1706967048416,-704.24,0.00023617,2]
[313218948,1706967048425,-500.0,0.00023617,2]
[313218949,1706967048434,-500.0,0.00023617,2]
[313218950,1706967048443,-500.0,0.00023617,2]
[313218951,1706967048453,-500.0,0.00023617,2]
[313218952,1706967048466,-500.0,0.00023617,2]
[313218953,1706967048476,-500.0,0.00023617,2]
[313218954,1706967048485,-804.23,0.00023617,2]
[313218955,1706967048494,-500.0,0.00023617,2]
[313218956,1706967048503,-1502.46,0.00023617,2]
[313218957,1706967048513,-1755.72,0.00023617,2]
[313218958,1706967048523,-500.0,0.00023617,2]
[313218959,1706967048533,-647.45,0.00023617,2]
[313218960,1706967048543,-500.0,0.00023617,2]
[313218961,1706967048552,-500.0,0.00023617,2]
[313218962,1706967048562,-500.0,0.00023617,2]
[313218963,1706967048571,-500.0,0.00023617,2]
[313218964,1706967048581,-1885.06,0.00023617,2]
[313218965,1706967048590,-500.0,0.00023617,2]
[313218966,1706967048600,-500.0,0.00023617,2]
[313218967,1706967048609,-722.12,0.00023617,2]
[313218968,1706967048618,-500.0,0.00023617,2]
[313218969,1706967048628,-500.0,0.00023617,2]
[313218970,1706967048637,-500.0,0.00023617,2]
[313218971,1706967048646,-500.0,0.00023617,2]
[313218972,1706967048752,-500.0,0.00023617,2]
[313218973,1706967048762,-500.0,0.00023617,2]
[313218974,1706967048771,-878.06,0.00023778,2]
[313218975,1706967048780,-500.0,0.00023778,2]
[313218976,1706967048789,-697.41,0.00023778,2]
[313218977,1706967048799,-500.0,0.00023779,2]
[313218978,1706967048810,-844.92,0.00023779,2]
[313218979,1706967048821,-905.64,0.00023779,2]
[313218980,1706967048831,-500.0,0.00023779,2]
[313218981,1706967048841,-1473.7426942,0.00023809,2]
[313218982,1706967048852,-500.0,0.00023891,2]
[313218983,1706967048862,-500.0,0.00023891,2]
[313218984,1706967048873,-500.0,0.00023891,2]
[313218985,1706967048882,-500.0,0.00023891,2]
[313218986,1706967048891,-500.0,0.00023891,2]
[313218987,1706967048900,-606.5273102,0.00023891,2]
[313218988,1706967048911,-718.23,0.00023891,2]
[313218989,1706967048922,-500.0,0.00023891,2]
[313218990,1706967048933,-500.0,0.00023891,2]
[313218991,1706967048943,-583.57,0.00023891,2]
[313218992,1706967048953,-500.0,0.00023891,2]
[313218993,1706967048962,-600.25,0.00023891,2]
[313218994,1706967048971,-500.0,0.00023891,2]
[313218995,1706967048980,-500.0,0.00023891,2]
[313218996,1706967048989,-544.09512389,0.00023891,2]
[313218997,1706967048999,-1094.28,0.00023891,2]
[313218998,1706967049008,-495.80525904,0.00023891,2]
[313218999,1706967049017,-500.0,0.00023891,2]
[313219000,1706967049027,-500.0,0.00023891,2]
[313219001,1706967049037,-1455.45,0.00023891,2]
[313219002,1706967049047,-500.0,0.00023891,2]
[313219003,1706967049056,-597.23,0.00023891,2]
[313219004,1706967049066,-500.0,0.00023891,2]
[313219005,1706967049077,-500.0,0.00023891,2]
[313219006,1706967049087,-500.0,0.00023891,2]
[313219007,1706967049096,-8496.32,0.00023891,2]
[313219008,1706967049105,-500.0,0.00023891,2]
[313219009,1706967049114,-500.0,0.00023891,2]
[313219010,1706967049123,-500.0,0.00023891,2]
[313219011,1706967049134,-500.0,0.00023891,2]
[313219012,1706967049143,-500.0,0.00023891,2]
[313219013,1706967049153,-500.0,0.00023891,2]
[313219014,1706967049165,-500.0,0.00023891,2]
[313219015,1706967049174,-1626.48,0.00023891,2]
[313219016,1706967049183,-500.0,0.00023891,2]
[313219017,1706967049193,-500.0,0.00023891,2]
[313219018,1706967049202,-500.0,0.00023891,2]
[313219019,1706967049213,-500.0,0.00023891,2]
[313219020,1706967049222,-784.58,0.00023891,2]
[313219021,1706967049231,-564.24,0.00023891,2]
[313219022,1706967049242,-500.0,0.00023891,2]
[313219023,1706967049253,-500.0,0.00023891,2]
[313219024,1706967049262,-500.0,0.00023891,2]
[313219025,1706967049271,-500.0,0.00023891,2]
[313219026,1706967049280,-764.69,0.00023891,2]
[313219027,1706967049289,-500.0,0.00023891,2]
[313219028,1706967049300,-1009.0,0.00023891,2]
[313219029,1706967049310,-500.0,0.00023891,2]
[313219030,1706967049320,-699.25,0.00023891,2]
[313219031,1706967049330,-500.0,0.00023891,2]
[313219032,1706967049341,-500.0,0.00023891,2]
[313219033,1706967049350,-500.0,0.00023891,2]
[313219034,1706967049359,-500.0,0.00023891,2]
[313219035,1706967049369,-500.0,0.00023891,2]
[313219036,1706967049378,-562.87,0.00023891,2]
[313219037,1706967049387,-500.0,0.00023891,2]
[313219038,1706967049396,-8524.74,0.00023891,2]
[313219039,1706967049405,-500.0,0.00023891,2]
[313219040,1706967049414,-500.0,0.00023891,2]
[313219041,1706967049423,-520.88,0.00023891,2]
[313219042,1706967049432,-500.0,0.00023891,2]
[313219043,1706967049442,-500.0,0.00023891,2]
[313219044,1706967049452,-541.55,0.00023891,2]
[313219045,1706967049462,-500.0,0.00023891,2]
[313219046,1706967049474,-607.69,0.00023891,2]
[313219047,1706967049483,-1233.62,0.00023891,2]
[313219048,1706967049494,-500.0,0.00023891,2]
[313219049,1706967049503,-500.0,0.00023891,2]
[313219050,1706967049513,-689.93,0.00023891,2]
[313219051,1706967049524,-500.0,0.00023891,2]
[313219052,1706967049533,-500.0,0.00023891,2]
[313219053,1706967049543,-1066.18,0.00023891,2]
[313219054,1706967049554,-500.0,0.00023891,2]
[313219055,1706967049563,-500.0,0.00023891,2]
[313219056,1706967049572,-500.0,0.00023891,2]
[313219057,1706967049581,-500.0,0.00023891,2]
[313219058,1706967049590,-500.0,0.00023891,2]
[313219059,1706967049599,-500.0,0.00023891,2]
[313219060,1706967049609,-500.0,0.00023891,2]
[313219061,1706967049618,-1533.71,0.00023891,2]
[313219062,1706967049627,-500.0,0.00023891,2]
[313219063,1706967049636,-1939.99,0.00023891,2]
[313219064,1706967049645,-500.0,0.00023891,2]
[313219065,1706967049655,-500.0,0.00023891,2]
[313219066,1706967049664,-704.24,0.00023891,2]
[313219067,1706967049674,-500.0,0.00023891,2]
[313219068,1706967049683,-500.0,0.00023891,2]
[313219069,1706967049693,-500.0,0.00023891,2]
[313219070,1706967049702,-500.0,0.00023891,2]
[313219071,1706967049712,-500.0,0.00023891,2]
[313219072,1706967049721,-500.0,0.00023891,2]
[313219073,1706967049730,-804.23,0.00023891,2]
[313219074,1706967049738,-281.24,0.00023891,2]
[313219075,1706967049748,-1502.46,0.00023891,2]
[313219076,1706967049757,-1755.72,0.00023891,2]
[313219077,1706967049766,-500.0,0.00023891,2]
[313219078,1706967049775,-647.45,0.00023891,2]
[313219079,1706967049785,-500.0,0.00023891,2]
[313219080,1706967049794,-500.0,0.00023891,2]
[313219081,1706967049803,-500.0,0.00023891,2]
[313219082,1706967049812,-500.0,0.00023891,2]
[313219083,1706967049821,-1885.06,0.00023891,2]
[313219084,1706967049830,-500.0,0.00023891,2]
[313219085,1706967049839,-480.43908298,0.00023891,2]
[313219086,1706967049848,-722.12,0.00023891,2]
[313219087,1706967049857,-500.0,0.00023891,2]
[313219088,1706967049865,-500.0,0.00023891,2]
[313219089,1706967049874,-500.0,0.00023891,2]
[313219090,1706967049883,-500.0,0.00023891,2]
[313219091,1706967049892,-500.0,0.00023891,2]
[313219092,1706967049901,-500.0,0.00023891,2]
[313219093,1706967049911,-121013.84309312,0.00023999,2]
[313219094,1706967049920,-201.77568224,0.00024,2]
[313219095,1706967049929,-2000.0,0.00024,2]
[313219096,1706967049938,-200.0,0.00024,2]
[313219097,1706967049947,-500.0,0.00024,2]
[313219098,1706967049956,-500.0,0.00024,2]
[313219099,1706967049967,-500.0,0.00024,2]
[313219100,1706967049976,-295.26,0.00024,2]
[313219101,1706967049985,-454.0,0.00024,12]
[313219102,1706967049994,-2300.0,0.00024,3]
[313219103,1706967050003,-505.79,0.00024002,2]
[313219104,1706967050012,-150.07996762,0.00024045,2]
[313219105,1706967050022,-878.06,0.00024052,2]
[313219106,1706967050031,-500.0,0.00024052,2]
[313219107,1706967050040,-697.41,0.00024052,2]
[313219108,1706967050049,-500.0,0.00024053,2]
[313219109,1706967050058,-844.92,0.00024053,2]
[313219110,1706967050143,-905.64,0.00024053,2]
[313219111,1706967050152,-500.0,0.00024053,2]
[313219112,1706967050162,-456.73204164,0.000241,2]
[313219113,1706967050171,-152.57148147,0.00024128,2]
[313219114,1706967050181,-183.09987742,0.00024164,2]
[313219115,1706967050190,-236.75454593,0.00024164,2]
[313219116,1706967050199,-500.0,0.00024165,2]
[313219117,1706967050208,-500.0,0.00024165,2]
[313219118,1706967050218,-500.0,0.00024165,2]
[313219119,1706967050227,-500.0,0.00024165,2]
[313219120,1706967050236,-500.0,0.00024165,2]
[313219121,1706967050245,-718.23,0.00024165,2]
[313219122,1706967050254,-500.0,0.00024165,2]
[313219123,1706967050263,-500.0,0.00024165,2]
[313219124,1706967050272,-583.57,0.00024165,2]
[313219125,1706967050282,-300.91551203,0.00024165,2]
[313219126,1706967050290,-600.25,0.00024165,2]
[313219127,1706967050300,-500.0,0.00024165,2]
[313219128,1706967050309,-500.0,0.00024165,2]
[313219129,1706967050319,-1094.28,0.00024165,2]
[313219130,1706967050329,-500.0,0.00024165,2]
[313219131,1706967050338,-500.0,0.00024165,2]
[313219132,1706967050348,-1455.45,0.00024165,2]
[313219133,1706967050357,-500.0,0.00024165,2]
[313219134,1706967050366,-597.23,0.00024165,2]
[313219135,1706967050375,-500.0,0.00024165,2]
[313219136,1706967050386,-500.0,0.00024165,2]
[313219137,1706967050395,-500.0,0.00024165,2]
[313219138,1706967050405,-8496.32,0.00024165,2]
[313219139,1706967050414,-500.0,0.00024165,2]
[313219140,1706967050423,-500.0,0.00024165,2]
[313219141,1706967050432,-500.0,0.00024165,2]
[313219142,1706967050442,-500.0,0.00024165,2]
[313219143,1706967050451,-500.0,0.00024165,2]
[313219144,1706967050461,-500.0,0.00024165,2]
[313219145,1706967050473,-393.21435584,0.00024165,2]
[313219146,1706967050482,-1626.48,0.00024165,2]
[313219147,1706967050491,-159.20524633,0.00024165,2]
[313219148,1706967050501,-500.0,0.00024165,2]
[313219149,1706967050511,-500.0,0.00024165,2]
[313219150,1706967050520,-500.0,0.00024165,2]
[313219151,1706967050530,-784.58,0.00024165,2]
[313219152,1706967050539,-564.24,0.00024165,2]
[313219153,1706967050548,-500.0,0.00024165,2]
[313219154,1706967050558,-500.0,0.00024165,2]
[313219155,1706967050568,-500.0,0.00024165,2]
[313219156,1706967050577,-500.0,0.00024165,2]
[313219157,1706967050586,-764.69,0.00024165,2]
[313219158,1706967050595,-1009.0,0.00024165,2]
[313219159,1706967050605,-500.0,0.00024165,2]
[313219160,1706967050614,-500.0,0.00024165,2]
[313219161,1706967050623,-699.25,0.00024165,2]
[313219162,1706967050633,-500.0,0.00024165,2]
[313219163,1706967050642,-500.0,0.00024165,2]
[313219164,1706967050652,-500.0,0.00024165,2]
[313219165,1706967050661,-500.0,0.00024165,2]
[313219166,1706967050671,-500.0,0.00024165,2]
[313219167,1706967050680,-562.87,0.00024165,2]
[313219168,1706967050689,-500.0,0.00024165,2]
[313219169,1706967050698,-8524.74,0.00024165,2]
[313219170,1706967050708,-500.0,0.00024165,2]
[313219171,1706967050717,-500.0,0.00024165,2]
[313219172,1706967050727,-520.88,0.00024165,2]
[313219173,1706967050736,-500.0,0.00024165,2]
[313219174,1706967050746,-500.0,0.00024165,2]
[313219175,1706967050755,-541.55,0.00024165,2]
[313219176,1706967050764,-500.0,0.00024165,2]
[313219177,1706967050773,-607.69,0.00024165,2]
[313219178,1706967050782,-1233.62,0.00024165,2]
[313219179,1706967050791,-500.0,0.00024165,2]
[313219180,1706967050801,-500.0,0.00024165,2]
[313219181,1706967050810,-689.93,0.00024165,2]
[313219182,1706967050819,-500.0,0.00024165,2]
[313219183,1706967050828,-500.0,0.00024165,2]
[313219184,1706967050837,-1066.18,0.00024165,2]
[313219185,1706967050846,-500.0,0.00024165,2]
[313219186,1706967050855,-500.0,0.00024165,2]
[313219187,1706967050864,-500.0,0.00024165,2]
[313219188,1706967050873,-500.0,0.00024165,2]
[313219189,1706967050882,-500.0,0.00024165,2]
[313219190,1706967050892,-500.0,0.00024165,2]
[313219191,1706967050901,-500.0,0.00024165,2]
[313219192,1706967050910,-1533.71,0.00024165,2]
[313219193,1706967050920,-500.0,0.00024165,2]
[313219194,1706967050930,-1939.99,0.00024165,2]
[313219195,1706967050939,-500.0,0.00024165,2]
[313219196,1706967050948,-500.0,0.00024165,2]
[313219197,1706967050957,-704.24,0.00024165,2]
[313219198,1706967050967,-500.0,0.00024165,2]
[313219199,1706967050976,-500.0,0.00024165,2]
[313219200,1706967050985,-500.0,0.00024165,2]
[313219201,1706967050995,-500.0,0.00024165,2]
[313219202,1706967051005,-500.0,0.00024165,2]
[313219203,1706967051014,-500.0,0.00024165,2]
[313219204,1706967051022,-804.23,0.00024165,2]
[313219205,1706967051032,-1502.46,0.00024165,2]
[313219206,1706967051041,-1755.72,0.00024165,2]
[313219207,1706967051051,-500.0,0.00024165,2]
[313219208,1706967051060,-647.45,0.00024165,2]
[313219209,1706967051069,-500.0,0.00024165,2]
[313219210,1706967051079,-500.0,0.00024165,2]
[313219211,1706967051088,-500.0,0.00024165,2]
[313219212,1706967051097,-500.0,0.00024165,2]
[313219213,1706967051107,-1885.06,0.00024165,2]
[313219214,1706967051115,-500.0,0.00024165,2]
[313219215,1706967051124,-722.12,0.00024165,2]
[313219216,1706967051134,-500.0,0.00024165,2]
[313219217,1706967051143,-500.0,0.00024165,2]
[313219218,1706967051152,-500.0,0.00024165,2]
[313219219,1706967051162,-565.32,0.00024165,2]
[313219220,1706967051171,-500.0,0.00024165,2]
[313219221,1706967051180,-299.27779395,0.00024205,2]
[313219222,1706967051189,-158.02798028,0.00024247,2]
[313219223,1706967051198,-158.02798028,0.00024276,2]
[313219224,1706967051207,-168.08,0.00024297,2]
[313219225,1706967051216,-165.92,0.00024297,2]
[313219226,1706967051225,-166.51155626,0.000243,2]
[313219227,1706967051234,-878.06,0.00024326,2]
[313219228,1706967051242,-500.0,0.00024326,2]
[313219229,1706967051251,-697.41,0.00024326,2]
[313219230,1706967051260,-500.0,0.00024327,2]
[313219231,1706967051270,-844.92,0.00024327,2]
[313219232,1706967051279,-905.64,0.00024327,2]
[313219233,1706967051288,-500.0,0.00024327,2]
[313219234,1706967051298,-500.0,0.00024439,2]
[313219235,1706967051307,-500.0,0.00024439,2]
[313219236,1706967051388,-413.54780262,0.00024439,2]
[313219237,1706967051398,-500.0,0.00024439,2]
[313219238,1706967051408,-500.0,0.00024439,2]
[313219239,1706967051418,-718.23,0.00024439,2]
[313219240,1706967051427,-500.0,0.00024439,2]
[313219241,1706967051436,-500.0,0.00024439,2]
[313219242,1706967051446,-583.57,0.00024439,2]
[313219243,1706967051456,-600.25,0.00024439,2]
[313219244,1706967051468,-500.0,0.00024439,2]
[313219245,1706967051478,-500.0,0.00024439,2]
[313219246,1706967051488,-1094.28,0.00024439,2]
[313219247,1706967051498,-500.0,0.00024439,2]
[313219248,1706967051507,-500.0,0.00024439,2]
[313219249,1706967051517,-1455.45,0.00024439,2]
[313219250,1706967051527,-500.0,0.00024439,2]
[313219251,1706967051537,-500.0,0.00024439,2]
[313219252,1706967051548,-597.23,0.00024439,2]
[313219253,1706967051557,-500.0,0.00024439,2]
[313219254,1706967051567,-500.0,0.00024439,2]
[313219255,1706967051576,-8496.32,0.00024439,2]
[313219256,1706967051585,-500.0,0.00024439,2]
[313219257,1706967051595,-500.0,0.00024439,2]
[313219258,1706967051604,-500.0,0.00024439,2]
[313219259,1706967051614,-500.0,0.00024439,2]
[313219260,1706967051623,-500.0,0.00024439,2]
[313219261,1706967051632,-500.0,0.00024439,2]
[313219262,1706967051642,-1626.48,0.00024439,2]
[313219263,1706967051651,-500.0,0.00024439,2]
[313219264,1706967051660,-500.0,0.00024439,2]
[313219265,1706967051670,-500.0,0.00024439,2]
[313219266,1706967051679,-784.58,0.00024439,2]
[313219267,1706967051688,-564.24,0.00024439,2]
[313219268,1706967051697,-500.0,0.00024439,2]
[313219269,1706967051707,-500.0,0.00024439,2]
[313219270,1706967051716,-500.0,0.00024439,2]
[313219271,1706967051727,-500.0,0.00024439,2]
[313219272,1706967051737,-764.69,0.00024439,2]
[313219273,1706967051746,-500.0,0.00024439,2]
[313219274,1706967051756,-500.0,0.00024439,2]
[313219275,1706967051765,-1009.0,0.00024439,2]
[313219276,1706967051776,-699.25,0.00024439,2]
[313219277,1706967051786,-500.0,0.00024439,2]
[313219278,1706967051796,-500.0,0.00024439,2]
[313219279,1706967051806,-500.0,0.00024439,2]